[Event "Irish Championship 2026"]
[Site "Talbot Hotel Stillorgan, Co.Dublin, IE"]
[Date "2026.08.08"]
[Round "8"]
[White "Joe Ryan"]
[Black "Andrey A. Ivanov"]
[Result "1/2-1/2"]
[Board "67"]
[TimeControl "40/5400+30:1800+30"]
[WhiteElo "2159"]
[BlackElo "2085"]
[WhiteClock "0:08:54"]
[BlackClock "0:03:31"]
[Variant "Standard"]
[EndDate "2026.08.08"]
[EndTime "18:52:50"]

1. Nf3 {[%clk 1:27:16]}  Nf6 {[%clk 1:30:53]} 2. g3 {[%clk 1:26:52]}  b5 {[%clk 1:31:19]} 3. Bg2 {[%clk 1:26:53]}  Bb7 {[%clk 1:31:47]}
4. O-O {[%clk 1:27:07]}  e6 {[%clk 1:32:02]} 5. d3 {[%clk 1:26:38]}  Be7 {[%clk 1:32:04]} 6. e4 {[%clk 1:26:17]}  d6 {[%clk 1:32:13]}
7. Nd4 {[%clk 1:26:06]}  Qd7 {[%clk 1:27:10]} 8. a4 {[%clk 1:21:40]}  b4 {[%clk 1:23:28]} 9. Nd2 {[%clk 1:15:48]}  c5 {[%clk 1:18:55]}
10. Ne2 {[%clk 1:15:06]}  Nc6 {[%clk 1:17:57]} 11. b3 {[%clk 1:13:59]}  h5 {[%clk 1:15:43]} 12. h3 {[%clk 1:11:33]}  Ng8 {[%clk 1:07:30]}
13. Nc4 {[%clk 1:01:56]}  h4 {[%clk 0:54:41]} 14. g4 {[%clk 0:54:09]}  d5 {[%clk 0:53:55]} 15. Nd2 {[%clk 0:47:02]}  Bf6 {[%clk 0:51:07]}
16. Rb1 {[%clk 0:47:21]}  Nge7 {[%clk 0:50:55]} 17. f4 {[%clk 0:47:05]}  Bd4+ {[%clk 0:50:38]} 18. Kh1 {[%clk 0:44:49]}  Be3 {[%clk 0:49:44]}
19. Nf3 {[%clk 0:43:30]}  Bxc1 {[%clk 0:49:43]} 20. Qxc1 {[%clk 0:43:30]}  dxe4 {[%clk 0:49:25]} 21. dxe4 {[%clk 0:43:52]}  O-O-O {[%clk 0:49:03]}
22. Rd1 {[%clk 0:40:34]}  Qc7 {[%clk 0:45:03]} 23. Qe3 {[%clk 0:38:07]}  Qb6 {[%clk 0:30:12]} 24. Rxd8+ {[%clk 0:37:31]}  Rxd8 {[%clk 0:29:38]}
25. c3 {[%clk 0:32:11]}  Kb8 {[%clk 0:22:24]} 26. c4 {[%clk 0:30:18]}  Nd4 {[%clk 0:21:02]} 27. Nexd4 {[%clk 0:27:50]}  cxd4 {[%clk 0:20:19]}
28. Qd3 {[%clk 0:28:15]}  Ng6 {[%clk 0:20:25]} 29. Qd2 {[%clk 0:26:33]}  Bxe4 {[%clk 0:20:03]} 30. Re1 {[%clk 0:26:50]}  Bxf3 {[%clk 0:19:29]}
31. Bxf3 {[%clk 0:27:05]}  Qd6 {[%clk 0:19:38]} 32. c5 {[%clk 0:22:34]}  Qc7 {[%clk 0:17:11]} 33. Qxb4+ {[%clk 0:20:41]}  Kc8 {[%clk 0:17:40]}
34. Re4 {[%clk 0:18:05]}  d3 {[%clk 0:13:44]} 35. Qd2 {[%clk 0:18:18]}  Ne7 {[%clk 0:13:56]} 36. a5 {[%clk 0:14:41]}  Nc6 {[%clk 0:10:01]}
37. b4 {[%clk 0:14:15]}  Rd4 {[%clk 0:05:01]} 38. Rxd4 {[%clk 0:08:04]}  Nxd4 {[%clk 0:05:30]} 39. Bg2 {[%clk 0:07:31]}  g5 {[%clk 0:05:25]}
40. Qxd3 {[%clk 0:06:10]}  Qxf4 {[%clk 0:05:42]} 41. Qe4 {[%clk 0:18:50]}  Qxe4 {[%clk 0:35:09]} 42. Bxe4 {[%clk 0:19:09]}  a6 {[%clk 0:32:18]}
43. Kg2 {[%clk 0:18:30]}  Kc7 {[%clk 0:32:05]} 44. Kf2 {[%clk 0:18:49]}  f5 {[%clk 0:21:50]} 45. Ke3 {[%clk 0:17:11]}  Nc6 {[%clk 0:19:10]}
46. gxf5 {[%clk 0:17:23]}  exf5 {[%clk 0:19:38]} 47. Bxf5 {[%clk 0:16:43]}  Nxb4 {[%clk 0:20:05]} 48. Kf3 {[%clk 0:13:59]}  Nc6 {[%clk 0:19:47]}
49. Kg4 {[%clk 0:14:11]}  Nxa5 {[%clk 0:20:09]} 50. Kxg5 {[%clk 0:13:18]}  Nb7 {[%clk 0:15:21]} 51. Kxh4 {[%clk 0:13:25]}  Nxc5 {[%clk 0:15:49]}
52. Kg5 {[%clk 0:13:41]}  Kd8 {[%clk 0:15:28]} 53. Kf6 {[%clk 0:12:27]}  Ke8 {[%clk 0:15:45]} 54. Kg7 {[%clk 0:12:12]}  a5 {[%clk 0:12:51]}
55. h4 {[%clk 0:12:07]}  a4 {[%clk 0:13:04]} 56. h5 {[%clk 0:11:29]}  a3 {[%clk 0:13:19]} 57. Bb1 {[%clk 0:11:52]}  Ne6+ {[%clk 0:09:38]}
58. Kg8 {[%clk 0:12:10]}  Nf8 {[%clk 0:03:36]} 59. h6 {[%clk 0:12:06]}  Ke7 {[%clk 0:03:36]} 60. Kg7 {[%clk 0:10:00]}  Ne6 {[%clk 0:03:32]}
61. Kg8 {[%clk 0:08:43]}  Nf8 {[%clk 0:03:46]} 62. Ba2 {[%clk 0:09:01]}  Kf6 {[%clk 0:03:04]} 63. Kxf8 {[%clk 0:08:54]}  Kg6 {[%clk 0:03:31]}
64. Ke7 {[%clk 0:09:07]} 1/2-1/2

[Event "Irish Championship 2026"]
[Site "Talbot Hotel Stillorgan, Co.Dublin, IE"]
[Date "2026.08.08"]
[Round "8"]
[White "Murray, Benjamin"]
[Black "O'Connell, Gerard"]
[Result "1-0"]
[Board "68"]
[TimeControl "40/5400+30:1800+30"]
[WhiteFideId "2512963"]
[BlackFideId "2500493"]
[WhiteElo "2080"]
[BlackElo "1996"]
[WhiteClock "0:33:18"]
[BlackClock "0:45:48"]
[Variant "Standard"]
[EndDate "2026.08.08"]
[EndTime "16:15:13"]

1. e4 {[%clk 1:25:58]}  c5 {[%clk 1:30:47]} 2. Nf3 {[%clk 1:26:18]}  d6 {[%clk 1:30:59]} 3. d4 {[%clk 1:26:42]}  cxd4 {[%clk 1:31:23]}
4. Nxd4 {[%clk 1:27:07]}  Nf6 {[%clk 1:31:49]} 5. Nc3 {[%clk 1:27:30]}  g6 {[%clk 1:32:01]} 6. Be3 {[%clk 1:27:30]}  Bg7 {[%clk 1:32:23]}
7. f3 {[%clk 1:27:52]}  Nc6 {[%clk 1:32:46]} 8. Qd2 {[%clk 1:28:16]}  O-O {[%clk 1:32:50]} 9. Bc4 {[%clk 1:28:38]}  Bd7 {[%clk 1:32:51]}
10. O-O-O {[%clk 1:29:00]}  Rc8 {[%clk 1:32:48]} 11. Be2 {[%clk 1:29:23]}  Ne5 {[%clk 1:26:58]} 12. Kb1 {[%clk 1:29:48]}  Nc4 {[%clk 1:25:16]}
13. Bxc4 {[%clk 1:30:11]}  Rxc4 {[%clk 1:25:42]} 14. g4 {[%clk 1:30:36]}  b5 {[%clk 1:18:29]} 15. b3 {[%clk 1:30:59]}  Rc8 {[%clk 1:08:54]}
16. Ndxb5 {[%clk 1:31:16]}  Nxe4 {[%clk 0:56:09]} 17. fxe4 {[%clk 1:30:06]}  a6 {[%clk 0:56:14]} 18. Nd4 {[%clk 1:29:01]}  Bxg4 {[%clk 0:56:25]}
19. Rdf1 {[%clk 1:17:39]}  e5 {[%clk 0:53:51]} 20. Nde2 {[%clk 1:13:53]}  f5 {[%clk 0:52:39]} 21. h3 {[%clk 1:03:42]}  Bh5 {[%clk 0:49:04]}
22. Ng3 {[%clk 0:33:49]}  f4 {[%clk 0:48:27]} 23. Nxh5 {[%clk 0:34:14]}  fxe3 {[%clk 0:48:38]} 24. Qd5+ {[%clk 0:34:41]}  Kh8 {[%clk 0:48:27]}
25. Nxg7 {[%clk 0:35:05]}  Rxc3 {[%clk 0:46:43]} 26. Ne6 {[%clk 0:33:16]}  Rxf1+ {[%clk 0:45:53]} 27. Rxf1 {[%clk 0:33:41]}  e2 {[%clk 0:46:00]}
28. Re1 {[%clk 0:33:48]}  Qc8 {[%clk 0:45:48]} 29. Qxd6 {[%clk 0:33:18]} 1-0

[Event "Irish Championship 2026"]
[Site "Talbot Hotel Stillorgan, Co.Dublin, IE"]
[Date "2026.08.08"]
[Round "8"]
[White "Moull, Arthur"]
[Black "Daly, Colm"]
[Result "0-1"]
[Board "69"]
[TimeControl "40/5400+30:1800+30"]
[WhiteFideId "2517426"]
[BlackFideId "2500434"]
[WhiteElo "1876"]
[BlackElo "2182"]
[BlackTitle "FM"]
[WhiteClock "0:05:22"]
[BlackClock "0:14:09"]
[Variant "Standard"]
[EndDate "2026.08.08"]
[EndTime "17:33:47"]

1. e4 {[%clk 1:30:57]}  c5 {[%clk 1:17:43]} 2. d4 {[%clk 1:30:31]}  cxd4 {[%clk 1:17:53]} 3. Qxd4 {[%clk 1:30:54]}  Nc6 {[%clk 1:18:19]}
4. Qd3 {[%clk 1:31:20]}  d6 {[%clk 1:16:11]} 5. Nc3 {[%clk 1:31:18]}  g6 {[%clk 1:16:15]} 6. Nf3 {[%clk 1:31:29]}  Bg7 {[%clk 1:16:44]}
7. Be2 {[%clk 1:31:40]}  Nf6 {[%clk 1:14:53]} 8. O-O {[%clk 1:31:42]}  O-O {[%clk 1:13:24]} 9. Nd5 {[%clk 1:32:01]}  Nd7 {[%clk 1:12:56]}
10. c3 {[%clk 1:31:09]}  Nc5 {[%clk 1:13:15]} 11. Qc2 {[%clk 1:31:31]}  b6 {[%clk 1:09:52]} 12. Bg5 {[%clk 1:23:18]}  Bb7 {[%clk 1:09:37]}
13. a4 {[%clk 1:16:27]}  Rc8 {[%clk 1:08:43]} 14. Bb5 {[%clk 1:08:53]}  f6 {[%clk 1:08:08]} 15. Be3 {[%clk 1:07:28]}  e6 {[%clk 1:00:48]}
16. Nf4 {[%clk 1:07:31]}  Qe7 {[%clk 1:01:15]} 17. Rfd1 {[%clk 1:01:23]}  Ne5 {[%clk 0:56:37]} 18. Nd2 {[%clk 1:00:13]}  Ng4 {[%clk 0:53:57]}
19. Bxc5 {[%clk 0:57:25]}  Rxc5 {[%clk 0:52:03]} 20. Bc4 {[%clk 0:54:31]}  Bc8 {[%clk 0:51:46]} 21. b4 {[%clk 0:51:09]}  Rc7 {[%clk 0:51:06]}
22. Qb3 {[%clk 0:47:55]}  Re8 {[%clk 0:51:05]} 23. Nf1 {[%clk 0:46:46]}  a6 {[%clk 0:47:48]} 24. Ng3 {[%clk 0:35:34]}  Ne5 {[%clk 0:45:39]}
25. Be2 {[%clk 0:35:21]}  Bb7 {[%clk 0:44:54]} 26. h4 {[%clk 0:32:53]}  Bh6 {[%clk 0:37:43]} 27. Nd3 {[%clk 0:25:11]}  Nc4 {[%clk 0:35:22]}
28. Ne1 {[%clk 0:23:08]}  Rec8 {[%clk 0:32:22]} 29. Ra2 {[%clk 0:19:19]}  Bf4 {[%clk 0:25:20]} 30. Bf3 {[%clk 0:18:06]}  Ne5 {[%clk 0:24:37]}
31. Ne2 {[%clk 0:17:46]}  Bh6 {[%clk 0:24:11]} 32. Rd4 {[%clk 0:15:12]}  Kh8 {[%clk 0:22:57]} 33. Qd1 {[%clk 0:15:18]}  d5 {[%clk 0:18:11]}
34. Qb1 {[%clk 0:10:28]}  Nxf3+ {[%clk 0:17:24]} 35. gxf3 {[%clk 0:10:39]}  e5 {[%clk 0:14:32]} 36. Rd1 {[%clk 0:10:55]}  dxe4 {[%clk 0:14:43]}
37. fxe4 {[%clk 0:11:25]}  f5 {[%clk 0:14:39]} 38. exf5 {[%clk 0:05:54]}  Qxh4 {[%clk 0:14:40]} 39. f3 {[%clk 0:05:39]}  Be3+ {[%clk 0:14:11]}
40. Kg2 {[%clk 0:05:57]}  gxf5 {[%clk 0:12:47]} 41. Qxf5 {[%clk 0:03:44]}  Rg7+ {[%clk 0:12:56]} 42. Ng3 {[%clk 0:04:05]}  Qxg3+ {[%clk 0:12:49]}
43. Kf1 {[%clk 0:04:32]}  Qg1+ {[%clk 0:12:53]} 44. Ke2 {[%clk 0:05:01]}  Qf2+ {[%clk 0:13:15]} 45. Kd3 {[%clk 0:05:12]}  Rd8+ {[%clk 0:13:42]}
46. Kc4 {[%clk 0:05:22]}  Qxa2# {[%clk 0:14:09]} 0-1

[Event "Irish Championship 2026"]
[Site "Talbot Hotel Stillorgan, Co.Dublin, IE"]
[Date "2026.08.08"]
[Round "8"]
[White "Arun, Nitish"]
[Black "Harding, Tim D"]
[Result "0-1"]
[Board "70"]
[TimeControl "40/5400+30:1800+30"]
[WhiteFideId "2524201"]
[BlackFideId "2500256"]
[WhiteElo "2175"]
[BlackElo "2004"]
[WhiteTitle "CM"]
[BlackTitle "CM"]
[WhiteClock "0:47:22"]
[BlackClock "0:33:35"]
[Variant "Standard"]

1. e4 {[%clk 1:30:59]}  e6 {[%clk 1:30:55]} 2. d4 {[%clk 1:31:25]}  d5 {[%clk 1:31:21]} 3. Nc3 {[%clk 1:31:51]}  Nf6 {[%clk 1:31:46]}
4. Bg5 {[%clk 1:32:17]}  Bb4 {[%clk 1:32:10]} 5. e5 {[%clk 1:32:43]}  h6 {[%clk 1:32:37]} 6. Bc1 {[%clk 1:33:09]}  Ne4 {[%clk 1:32:34]}
7. Qg4 {[%clk 1:33:34]}  Kf8 {[%clk 1:28:01]} 8. a3 {[%clk 1:32:34]}  Bxc3+ {[%clk 1:27:58]} 9. bxc3 {[%clk 1:32:58]}  c5 {[%clk 1:27:58]}
10. Bd3 {[%clk 1:32:47]}  Nc6 {[%clk 1:06:40]} 11. Nf3 {[%clk 1:24:51]}  Nxc3 {[%clk 0:54:59]} 12. dxc5 {[%clk 1:22:42]}  Qa5 {[%clk 0:47:27]}
13. Bd2 {[%clk 1:20:31]}  Bd7 {[%clk 0:39:04]} 14. O-O {[%clk 1:13:31]}  Qa4 {[%clk 0:36:29]} 15. Qxa4 {[%clk 0:55:40]}  Nxa4 {[%clk 0:36:16]}
16. Be3 {[%clk 0:53:34]}  d4 {[%clk 0:33:35]} 17. Nxd4 {[%clk 0:47:22]} 0-1

[Event "Irish Championship 2026"]
[Site "Talbot Hotel Stillorgan, Co.Dublin, IE"]
[Date "2026.08.08"]
[Round "8"]
[White "Conor O'reilly"]
[Black "Hughes, Padraig"]
[Result "1/2-1/2"]
[Board "71"]
[TimeControl "40/5400+30:1800+30"]
[BlackFideId "2505690"]
[WhiteElo "2019"]
[BlackElo "2022"]
[WhiteClock "0:21:32"]
[BlackClock "0:07:19"]
[Variant "Standard"]
[EndDate "2026.08.08"]
[EndTime "19:19:13"]

1. e4 {[%clk 1:30:59]}  e6 {[%clk 1:30:55]} 2. d4 {[%clk 1:31:25]}  d5 {[%clk 1:31:21]} 3. Nc3 {[%clk 1:31:51]}  Nf6 {[%clk 1:31:46]}
4. Bg5 {[%clk 1:32:17]}  Bb4 {[%clk 1:32:10]} 5. e5 {[%clk 1:32:43]}  h6 {[%clk 1:32:37]} 6. Bc1 {[%clk 1:33:09]}  Ne4 {[%clk 1:32:34]}
7. Qg4 {[%clk 1:33:34]}  Kf8 {[%clk 1:28:01]} 8. a3 {[%clk 1:32:34]}  Bxc3+ {[%clk 1:27:58]} 9. bxc3 {[%clk 1:32:58]}  c5 {[%clk 1:27:58]}
10. Bd3 {[%clk 1:32:47]}  Nc6 {[%clk 1:06:40]} 11. Nf3 {[%clk 1:24:51]}  Nxc3 {[%clk 0:54:59]} 12. dxc5 {[%clk 1:22:42]}  Qa5 {[%clk 0:47:27]}
13. Bd2 {[%clk 1:20:31]}  Bd7 {[%clk 0:39:04]} 14. O-O {[%clk 1:13:31]}  Qa4 {[%clk 0:36:29]} 15. Qxa4 {[%clk 0:55:40]}  Nxa4 {[%clk 0:36:16]}
16. Be3 {[%clk 0:53:34]}  d4 {[%clk 0:33:35]} 17. Nxd4 {[%clk 0:47:22]}  Nxe5 {[%clk 0:32:09]} 18. Be2 {[%clk 0:46:02]}  Nc3 {[%clk 0:30:59]}
19. Bf3 {[%clk 0:39:52]}  Nxf3+ {[%clk 0:29:50]} 20. Nxf3 {[%clk 0:40:15]}  Bb5 {[%clk 0:30:10]} 21. Rfe1 {[%clk 0:40:20]}  Rd8 {[%clk 0:29:13]}
22. Nd4 {[%clk 0:38:20]}  a6 {[%clk 0:21:04]} 23. Nxb5 {[%clk 0:37:18]}  axb5 {[%clk 0:17:52]} 24. Bf4 {[%clk 0:36:31]}  Rd4 {[%clk 0:17:53]}
25. Be5 {[%clk 0:34:36]}  Rc4 {[%clk 0:18:00]} 26. Re3 {[%clk 0:33:45]}  Ne4 {[%clk 0:12:43]} 27. Rd1 {[%clk 0:28:37]}  Ke7 {[%clk 0:09:58]}
28. Bxg7 {[%clk 0:24:50]}  Rh7 {[%clk 0:08:41]} 29. Be5 {[%clk 0:24:51]}  f6 {[%clk 0:07:39]} 30. Bd6+ {[%clk 0:24:41]}  Kf7 {[%clk 0:04:45]}
31. f3 {[%clk 0:19:03]}  Nxc5 {[%clk 0:03:49]} 32. Bxc5 {[%clk 0:19:25]}  Rxc5 {[%clk 0:04:17]} 33. Rd7+ {[%clk 0:19:45]}  Kg6 {[%clk 0:04:43]}
34. Rxh7 {[%clk 0:20:01]}  Kxh7 {[%clk 0:05:11]} 35. Rxe6 {[%clk 0:20:23]}  Kg6 {[%clk 0:05:11]} 36. Rb6 {[%clk 0:19:44]}  Rxc2 {[%clk 0:05:09]}
37. Rxb5 {[%clk 0:20:09]}  Ra2 {[%clk 0:04:23]} 38. Ra5 {[%clk 0:20:21]}  b6 {[%clk 0:03:30]} 39. Ra6 {[%clk 0:20:32]}  b5 {[%clk 0:03:28]}
40. Ra5 {[%clk 0:20:18]}  Rb2 {[%clk 0:03:51]} 41. h4 {[%clk 0:19:09]}  h5 {[%clk 0:30:12]} 42. Kh2 {[%clk 0:49:11]}  b4 {[%clk 0:30:20]}
43. axb4 {[%clk 0:49:35]}  Rxb4 {[%clk 0:30:44]} 44. Kh3 {[%clk 0:49:47]}  Rb3 {[%clk 0:30:40]} 45. Rc5 {[%clk 0:50:00]}  Ra3 {[%clk 0:30:58]}
46. Kg3 {[%clk 0:50:19]}  Ra2 {[%clk 0:30:46]} 47. Rc8 {[%clk 0:50:27]}  Ra4 {[%clk 0:30:10]} 48. Rg8+ {[%clk 0:50:31]}  Kh7 {[%clk 0:30:21]}
49. Rf8 {[%clk 0:50:16]}  Kg7 {[%clk 0:30:29]} 50. Re8 {[%clk 0:50:40]}  Kg6 {[%clk 0:30:47]} 51. Re4 {[%clk 0:50:31]}  Ra2 {[%clk 0:31:08]}
52. Rb4 {[%clk 0:50:52]}  Rc2 {[%clk 0:31:23]} 53. Kh3 {[%clk 0:50:58]}  Rc3 {[%clk 0:31:26]} 54. Ra4 {[%clk 0:51:08]}  Rb3 {[%clk 0:31:46]}
55. Kh2 {[%clk 0:50:04]}  Rb2 {[%clk 0:31:34]} 56. Re4 {[%clk 0:50:14]}  Ra2 {[%clk 0:31:50]} 57. Kh3 {[%clk 0:50:32]}  Ra3 {[%clk 0:31:35]}
58. Kg3 {[%clk 0:50:38]}  Ra2 {[%clk 0:31:45]} 59. Re8 {[%clk 0:50:35]}  Ra4 {[%clk 0:31:24]} 60. Re7 {[%clk 0:50:14]}  Rb4 {[%clk 0:31:17]}
61. Re3 {[%clk 0:50:19]}  Ra4 {[%clk 0:30:02]} 62. Rb3 {[%clk 0:50:38]}  Rc4 {[%clk 0:28:15]} 63. Kh3 {[%clk 0:49:21]}  Ra4 {[%clk 0:27:28]}
64. Rc3 {[%clk 0:49:32]}  Rb4 {[%clk 0:27:03]} 65. Ra3 {[%clk 0:47:42]}  Rc4 {[%clk 0:26:54]} 66. Rb3 {[%clk 0:47:34]}  Ra4 {[%clk 0:27:15]}
67. Re3 {[%clk 0:46:41]}  Rb4 {[%clk 0:26:38]} 68. Rc3 {[%clk 0:46:54]}  Ra4 {[%clk 0:27:01]} 69. Rb3 {[%clk 0:46:42]}  Rc4 {[%clk 0:27:19]}
70. g3 {[%clk 0:45:49]}  Rc1 {[%clk 0:25:36]} 71. g4 {[%clk 0:44:51]}  hxg4+ {[%clk 0:13:16]} 72. fxg4 {[%clk 0:45:07]}  Rc5 {[%clk 0:11:35]}
73. Kg3 {[%clk 0:42:51]}  Ra5 {[%clk 0:10:39]} 74. Rb4 {[%clk 0:42:34]}  Rc5 {[%clk 0:08:38]} 75. Kf4 {[%clk 0:42:16]}  Rc1 {[%clk 0:08:04]}
76. h5+ {[%clk 0:39:20]}  Kg7 {[%clk 0:06:58]} 77. Rb7+ {[%clk 0:38:07]}  Kh6 {[%clk 0:07:03]} 78. Kf5 {[%clk 0:36:58]}  Rf1+ {[%clk 0:07:20]}
79. Ke4 {[%clk 0:36:28]}  Rg1 {[%clk 0:06:13]} 80. Kf3 {[%clk 0:34:21]}  Rf1+ {[%clk 0:06:05]} 81. Kg2 {[%clk 0:34:39]}  Ra1 {[%clk 0:03:29]}
82. Rf7 {[%clk 0:33:52]}  Kg5 {[%clk 0:03:17]} 83. Rg7+ {[%clk 0:34:02]}  Kf4 {[%clk 0:03:21]} 84. h6 {[%clk 0:30:48]}  Ra2+ {[%clk 0:03:46]}
85. Kh3 {[%clk 0:24:04]}  Ra1 {[%clk 0:04:08]} 86. Kg2 {[%clk 0:23:17]}  Ra2+ {[%clk 0:04:26]} 87. Kf1 {[%clk 0:23:28]}  Kf3 {[%clk 0:02:03]}
88. Ke1 {[%clk 0:23:52]}  Rh2 {[%clk 0:02:10]} 89. h7 {[%clk 0:19:13]}  Kg3 {[%clk 0:02:16]} 90. Kd1 {[%clk 0:18:55]}  Kf3 {[%clk 0:02:12]}
91. Kc1 {[%clk 0:18:40]}  Kg3 {[%clk 0:02:32]} 92. Kb1 {[%clk 0:18:11]}  Kf3 {[%clk 0:02:51]} 93. Ka1 {[%clk 0:18:14]}  Kg3 {[%clk 0:03:14]}
94. Kb1 {[%clk 0:18:24]}  Kf3 {[%clk 0:03:39]} 95. Kc1 {[%clk 0:18:50]}  Kg3 {[%clk 0:04:03]} 96. Kd1 {[%clk 0:19:09]}  Kf3 {[%clk 0:04:25]}
97. Ke1 {[%clk 0:19:31]}  Kg3 {[%clk 0:04:48]} 98. g5 {[%clk 0:19:38]}  fxg5 {[%clk 0:05:10]} 99. Rxg5+ {[%clk 0:20:02]}  Kf4 {[%clk 0:05:31]}
100. Rg7 {[%clk 0:20:16]}  Kf5 {[%clk 0:05:50]} 101. Kf1 {[%clk 0:20:20]}  Kf6 {[%clk 0:06:11]} 102. Ra7 {[%clk 0:20:43]}  Kg6 {[%clk 0:06:32]}
103. Kg1 {[%clk 0:21:06]}  Rxh7 {[%clk 0:06:57]} 104. Rxh7 {[%clk 0:21:32]}  Kxh7 {[%clk 0:07:19]} 1/2-1/2

[Event "Irish Championship 2026"]
[Site "Talbot Hotel Stillorgan, Co.Dublin, IE"]
[Date "2026.08.08"]
[Round "8"]
[White "John P. A. Kennedy"]
[Black "Hushpit, Lukian"]
[Result "1-0"]
[Board "73"]
[TimeControl "40/5400+30:1800+30"]
[BlackFideId "14189208"]
[WhiteElo "2012"]
[BlackElo "2088"]
[WhiteClock "0:05:37"]
[BlackClock "0:05:05"]
[Variant "Standard"]
[EndDate "2026.08.08"]
[EndTime "19:21:32"]

1. Nf3 {[%clk 1:30:58]}  d5 {[%clk 1:30:54]} 2. g3 {[%clk 1:31:24]}  Nf6 {[%clk 1:31:12]} 3. Bg2 {[%clk 1:31:50]}  c6 {[%clk 1:31:08]}
4. O-O {[%clk 1:32:12]}  Bf5 {[%clk 1:31:29]} 5. d4 {[%clk 1:32:00]}  Nbd7 {[%clk 1:31:38]} 6. c4 {[%clk 1:31:32]}  h6 {[%clk 1:28:27]}
7. Nc3 {[%clk 1:31:36]}  e6 {[%clk 1:28:27]} 8. Ne5 {[%clk 1:29:27]}  Be7 {[%clk 1:28:11]} 9. f4 {[%clk 1:26:06]}  O-O {[%clk 1:28:06]}
10. e3 {[%clk 1:20:29]}  Bh7 {[%clk 1:25:40]} 11. c5 {[%clk 1:15:01]}  Nxe5 {[%clk 1:24:44]} 12. fxe5 {[%clk 1:15:15]}  Nd7 {[%clk 1:25:09]}
13. e4 {[%clk 1:07:49]}  a5 {[%clk 1:21:00]} 14. exd5 {[%clk 1:02:53]}  exd5 {[%clk 1:19:09]} 15. Bh3 {[%clk 0:55:26]}  Kh8 {[%clk 1:08:11]}
16. Qg4 {[%clk 0:45:25]}  f5 {[%clk 1:04:53]} 17. Qe2 {[%clk 0:40:51]}  b6 {[%clk 1:03:08]} 18. cxb6 {[%clk 0:37:20]}  Nxb6 {[%clk 1:02:10]}
19. Be3 {[%clk 0:25:45]}  Rb8 {[%clk 0:57:12]} 20. b3 {[%clk 0:23:13]}  Na8 {[%clk 0:56:36]} 21. Rf2 {[%clk 0:19:12]}  Qd7 {[%clk 0:50:43]}
22. Raf1 {[%clk 0:18:08]}  g5 {[%clk 0:50:14]} 23. Qh5 {[%clk 0:12:45]}  Kg7 {[%clk 0:47:21]} 24. Na4 {[%clk 0:11:25]}  Bg6 {[%clk 0:45:57]}
25. Qd1 {[%clk 0:11:15]}  Nc7 {[%clk 0:43:47]} 26. Qc1 {[%clk 0:08:54]}  Na6 {[%clk 0:36:57]} 27. Nc5 {[%clk 0:06:25]}  Nxc5 {[%clk 0:36:25]}
28. dxc5 {[%clk 0:06:52]}  Qe6 {[%clk 0:32:59]} 29. Bd4 {[%clk 0:05:18]}  Rb7 {[%clk 0:22:04]} 30. Qc3 {[%clk 0:05:33]}  g4 {[%clk 0:21:47]}
31. Bg2 {[%clk 0:05:26]}  Bd8 {[%clk 0:22:09]} 32. Qd2 {[%clk 0:04:09]}  Bh7 {[%clk 0:18:24]} 33. Be3 {[%clk 0:03:46]}  Rbf7 {[%clk 0:17:44]}
34. Qe2 {[%clk 0:03:45]}  Kg8 {[%clk 0:17:38]} 35. Qd2 {[%clk 0:03:45]}  Kg7 {[%clk 0:16:46]} 36. Qe2 {[%clk 0:04:13]}  Bc7 {[%clk 0:14:03]}
37. Bd4 {[%clk 0:03:52]}  Re8 {[%clk 0:12:39]} 38. Re1 {[%clk 0:04:08]}  Kg8 {[%clk 0:12:59]} 39. Qd2 {[%clk 0:03:52]}  Qg6 {[%clk 0:12:24]}
40. Bc3 {[%clk 0:03:25]}  Rfe7 {[%clk 0:12:18]} 41. Rfe2 {[%clk 0:01:53]}  Re6 {[%clk 0:06:40]} 42. a3 {[%clk 0:30:28]}  Ra8 {[%clk 0:32:38]}
43. b4 {[%clk 0:30:35]}  axb4 {[%clk 0:33:02]} 44. axb4 {[%clk 0:31:02]}  Rb8 {[%clk 0:33:22]} 45. Qd3 {[%clk 0:23:33]}  Qe8 {[%clk 0:31:57]}
46. Qd4 {[%clk 0:21:08]}  Qe7 {[%clk 0:26:34]} 47. Rb2 {[%clk 0:19:52]}  Re8 {[%clk 0:26:13]} 48. b5 {[%clk 0:13:54]}  Bg6 {[%clk 0:13:29]}
49. bxc6 {[%clk 0:13:47]}  Bf7 {[%clk 0:12:48]} 50. Bxd5 {[%clk 0:12:26]}  Rd8 {[%clk 0:12:50]} 51. Qc4 {[%clk 0:09:16]}  Kf8 {[%clk 0:10:25]}
52. Bxe6 {[%clk 0:05:51]}  Bxe6 {[%clk 0:10:53]} 53. Qb4 {[%clk 0:06:05]}  h5 {[%clk 0:08:50]} 54. Rf2 {[%clk 0:06:09]}  Rd3 {[%clk 0:06:06]}
55. Bd2 {[%clk 0:04:59]}  Ke8 {[%clk 0:04:14]} 56. Qb5 {[%clk 0:03:47]}  Qd8 {[%clk 0:04:07]} 57. Qb2 {[%clk 0:02:27]}  h4 {[%clk 0:03:31]}
58. Re3 {[%clk 0:01:57]}  Rd5 {[%clk 0:01:45]} 59. Bc3 {[%clk 0:01:38]}  Rxc5 {[%clk 0:01:32]} 60. Rd2 {[%clk 0:01:28]}  Qg5 {[%clk 0:01:15]}
61. Bd4 {[%clk 0:01:25]}  Rd5 {[%clk 0:01:39]} 62. Qa3 {[%clk 0:01:07]}  Rb5 {[%clk 0:01:24]} 63. Rb2 {[%clk 0:01:01]}  Ra5 {[%clk 0:01:52]}
64. Qd3 {[%clk 0:01:01]}  hxg3 {[%clk 0:01:22]} 65. hxg3 {[%clk 0:01:21]}  Ra1+ {[%clk 0:01:23]} 66. Rb1 {[%clk 0:01:41]}  Ra2 {[%clk 0:01:51]}
67. Re2 {[%clk 0:01:35]}  Ra4 {[%clk 0:01:26]} 68. Rh2 {[%clk 0:01:40]}  Bd5 {[%clk 0:01:08]} 69. Be3 {[%clk 0:01:52]}  Qg8 {[%clk 0:01:18]}
70. Qxf5 {[%clk 0:01:56]}  Be6 {[%clk 0:01:42]} 71. Qf6 {[%clk 0:02:00]}  Bd8 {[%clk 0:01:36]} 72. Rb8 {[%clk 0:01:15]}  Ra1+ {[%clk 0:02:04]}
73. Kf2 {[%clk 0:01:40]}  Ra2+ {[%clk 0:02:30]} 74. Ke1 {[%clk 0:02:04]}  Ra1+ {[%clk 0:02:42]} 75. Kd2 {[%clk 0:02:13]}  Bc8 {[%clk 0:02:34]}
76. Rh8 {[%clk 0:02:13]}  Ra2+ {[%clk 0:02:15]} 77. Kc1 {[%clk 0:02:19]}  Bxf6 {[%clk 0:02:08]} 78. Rxg8+ {[%clk 0:02:41]}  Kf7 {[%clk 0:02:35]}
79. Rgxc8 {[%clk 0:02:42]}  Bxe5 {[%clk 0:02:59]} 80. Rb7+ {[%clk 0:03:00]}  Kf6 {[%clk 0:03:09]} 81. Rf8+ {[%clk 0:03:16]}  Kg6 {[%clk 0:03:21]}
82. c7 {[%clk 0:03:32]}  Ra1+ {[%clk 0:03:29]} 83. Kc2 {[%clk 0:03:55]}  Ra2+ {[%clk 0:03:56]} 84. Kd3 {[%clk 0:04:16]}  Ra3+ {[%clk 0:04:22]}
85. Ke4 {[%clk 0:04:35]}  Bg7 {[%clk 0:03:48]} 86. c8=Q {[%clk 0:04:49]}  Ra4+ {[%clk 0:04:14]} 87. Kd3 {[%clk 0:04:47]}  Ra3+ {[%clk 0:04:42]}
88. Ke2 {[%clk 0:05:09]}  Ra2+ {[%clk 0:04:40]} 89. Bd2 {[%clk 0:05:28]}  Kh7 {[%clk 0:05:05]} 90. Qf5# {[%clk 0:05:37]} 1-0